fUSD/lending_fUSD_20240901
["ID","MTS","AMOUNT","RATE_DAILY","PERIOD"]
[336806096,1725178238832,-19404.8889379,0.00013,2]
[336806098,1725178238846,-2123.8997036,0.00013,2]
[336806101,1725178238859,-8046.48342549,0.00013,2]
[336806103,1725178238871,-9786.6181317,0.00013,2]
[336806105,1725178238883,-519.07829482,0.00013,2]
[336806107,1725178238896,-557.63129051,0.00013,2]
[336806109,1725178238908,-794.86802,0.00013,2]
[336806113,1725178238934,-812.86059119,0.00013,2]
[336806340,1725178243541,-500.0,0.0001175,2]
[336806341,1725178243551,-1000.0,0.00012298,2]
[336806342,1725178243560,-1984.0,0.00013,2]
[336806343,1725178243571,-3125.5,0.00013,2]
[336806344,1725178243581,-1160.60801783,0.00013,2]
[336806345,1725178243607,-713.06554692,0.00013,2]
[336806421,1725178483190,157.59,9.676e-05,2]
[336806422,1725178593297,174.29,0.00010959,2]
[336806423,1725178764773,492.49,0.00010207,2]
[336806424,1725178992262,157.59,9.103e-05,2]
[336806425,1725179129575,80339.19207668,0.000101,2]
[336806426,1725179231422,154.97,0.00010959,2]
[336806427,1725179281616,467.86,9.896e-05,2]
[336806433,1725179361767,-1533.77325188,0.0001099,2]
[336806435,1725179365537,-569.47405088,0.0001099,2]
[336806436,1725179365560,-1800.0,0.00011,2]
[336806444,1725179432085,-400.0,0.00011678,2]
[336806445,1725179432095,-334.6075021,0.00011696,2]
[336806446,1725179432107,-180.5524979,0.00011696,2]
[336806447,1725179432116,-120.20127199,0.000117,2]
[336806448,1725179432144,-129.79872801,0.000117,2]
[336806449,1725179432154,-250.0,0.00011744,2]
[336806450,1725179432164,-324.44,0.00011756,2]
[336806451,1725179432173,-198.33,0.00011898,2]
[336806452,1725179432183,-1.35141078,0.00011938,2]
[336806453,1725179432195,-15546.1140996,0.00011938,2]
[336806454,1725179432207,-7098.22734583,0.00011938,2]
[336806455,1725179432226,-1244.30714379,0.00011938,2]
[336806456,1725179432236,-172.58,0.00011954,2]
[336806457,1725179432246,-600.0,0.00011973,2]
[336806458,1725179432255,-219.6,0.00011973,2]
[336806459,1725179432264,-274.42,0.00011973,2]
[336806460,1725179432274,-150.99,0.00011973,2]
[336806461,1725179432284,-150.99,0.00011973,2]
[336806462,1725179432293,-284.5,0.00011973,2]
[336806463,1725179432303,-150.99,0.00011992,2]
[336806464,1725179432313,-150.0,0.00011999,2]
[336806465,1725179432323,-500.0,0.00012,2]
[336806466,1725179432332,-500.0,0.00012,2]
[336806467,1725179432342,-500.0,0.00012,2]
[336806468,1725179432352,-500.0,0.00012,2]
[336806469,1725179432361,-500.0,0.00012,2]
[336806470,1725179432371,-500.0,0.00012,2]
[336806471,1725179432380,-500.0,0.00012,2]
[336806472,1725179432389,-500.0,0.00012,2]
[336806473,1725179432399,-632.85,0.00012,2]
[336806475,1725179432410,-500.0,0.00012,2]
[336806477,1725179432420,-500.0,0.00012,2]
[336806478,1725179432429,-500.0,0.00012,2]
[336806479,1725179432438,-500.0,0.00012,2]
[336806480,1725179432448,-500.0,0.00012,2]
[336806481,1725179432458,-500.0,0.00012,2]
[336806482,1725179432467,-573.4,0.00012,2]
[336806483,1725179432477,-188.5,0.00012,2]
[336806485,1725179432487,-499.99,0.00012,2]
[336806487,1725179432501,-591.87,0.00012,2]
[336806488,1725179432510,-250.0,0.00012046,2]
[336806489,1725179432520,-467.86,0.0001216,2]
[336806490,1725179432530,-150.0,0.00012226,2]
[336806491,1725179432542,-500.0,0.000123,2]
[336806492,1725179432551,-791.47,0.00012548,2]
[336806493,1725179432561,-867.11,0.00012548,2]
[336806494,1725179432571,-791.47,0.00012548,2]
[336806495,1725179432581,-791.47,0.00012548,2]
[336806496,1725179432591,-791.47,0.00012548,2]
[336806497,1725179432600,-10933.4567073,0.0001268,2]
[336806498,1725179432612,-2300.0,0.0001268,2]
[336806499,1725179432623,-836.89298034,0.0001268,2]
[336806500,1725179432642,-8942.66232885,0.0001268,2]
[336806506,1725179438324,-250.0,0.00012031,2]
[336806507,1725179438335,-611.0052838,0.0001268,2]
[336806508,1725179438345,-280.45362251,0.00012785,2]
[336806509,1725179438355,-188.42,0.00012839,2]
[336806510,1725179438364,-2102.73093,0.0001287,2]
[336806511,1725179438374,-296.98310574,0.00012893,2]
[336806512,1725179438383,-296.98310568,0.00012894,2]
[336806513,1725179438392,-296.98310568,0.00012895,2]
[336806514,1725179438402,-296.98310568,0.00012895,2]
[336806515,1725179438412,-296.98310568,0.00012896,2]
[336806516,1725179438422,-296.98310568,0.00012897,2]
[336806517,1725179438432,-296.98310568,0.00012898,2]
[336806518,1725179438442,-296.98310568,0.00012898,2]
[336806519,1725179438451,-296.98310568,0.00012899,2]
[336806520,1725179438461,-1888.0631,0.000129,2]
[336806521,1725179438471,-7534.4105,0.000129,2]
[336806522,1725179438480,-366.5034,0.000129,2]
[336806523,1725179438490,-296.98310568,0.000129,2]
[336806524,1725179438504,-169.17995873,0.00012973,2]
[336806525,1725179438514,-500.0,0.00012973,2]
[336806526,1725179438524,-3131.40342777,0.0001298,2]
[336806685,1725179440058,-398.62975953,0.0001298,2]
[336806693,1725179440123,-1489.433276,0.0001298,2]
[336806834,1725179443625,-334528.50115934,0.0001298,2]
[336806835,1725179443634,-25091.9477721,0.00012993,2]
[336806836,1725179443644,-993.62914765,0.00012997,2]
[336806837,1725179443653,-2560.93173877,0.00012997,2]
[336806840,1725179581109,157.58,9.256e-05,2]
[336806841,1725179643231,197.03,9.365e-05,2]
[336806842,1725179741908,156.84,0.00010959,2]
[336806843,1725179862223,484.17,9.708e-05,2]
[336806844,1725180211703,200.0,0.00023999,120]
[336806845,1725180280741,160.74,0.00010959,2]
[336806847,1725180413854,459.96,9.516e-05,2]
[336806850,1725180626827,6000.0,0.000109,2]
[336806852,1725180632270,-550.0,0.00011,2]
[336806853,1725180632280,-171.917184,0.00011236,2]
[336806854,1725180632289,-447.471036,0.00011336,2]
[336806855,1725180632300,-52.528964,0.00011336,2]
[336806856,1725180632310,-228.54,0.00011336,2]
[336806857,1725180632319,-190.41,0.00011346,2]
[336806858,1725180632328,-185.82401668,0.00011347,2]
[336806859,1725180632347,-888.60598332,0.00011347,2]
[336806860,1725180632356,-598.01,0.00011356,2]
[336806861,1725180632366,-200.0,0.00011384,2]
[336806862,1725180632375,-171.91718399,0.00011399,2]
[336806863,1725180632384,-633.53,0.00011411,2]
[336806864,1725180632393,-320.0,0.00011413,2]
[336806865,1725180632403,-250.0,0.00011418,2]
[336806866,1725180632412,-250.0,0.00011422,2]
[336806867,1725180632421,-196.09,0.00011422,2]
[336806868,1725180632430,-300.0,0.00011478,2]
[336806869,1725180632440,-1072.09123721,0.00011479,2]
[336806870,1725180632451,-252.67249884,0.00011479,2]
[336806871,1725180632464,-696.77431602,0.00011479,2]
[336806872,1725180632475,-8423.80945376,0.00011479,2]
[336806873,1725180632487,-548.6778876,0.00011479,2]
[336806874,1725180632498,-499.6,0.00011479,2]
[336806875,1725180632509,-999.9006,0.00011479,2]
[336806876,1725180632520,-1000.3932,0.00011479,2]
[336806877,1725180632531,-358.61088204,0.00011479,2]
[336806878,1725180632558,-544.02,0.00011479,2]
[336806879,1725180632570,-2670.40920195,0.00011479,2]
[336806880,1725180632580,-5599.02414876,0.00011479,2]
[336806881,1725180632592,-1224.01657382,0.00011479,2]
[336806882,1725180632601,-2352.96213862,0.00011499,2]
[336806883,1725180632613,-1592.09786138,0.00011499,2]
[336806884,1725180632623,-250.0,0.00011522,2]
[336806885,1725180632632,-226.57,0.00011564,2]
[336806886,1725180632642,-150.0,0.00011616,2]
[336806887,1725180632651,-194.75826541,0.00011688,2]
[336806888,1725180632661,-200.0,0.00011707,2]
[336806889,1725180632670,-459.96,0.0001178,2]
[336806890,1725180632680,-339.36,0.000118,2]
[336806891,1725180632691,-680.0,0.0001198,2]
[336806892,1725180632701,-500.0,0.000122,4]
[336806893,1725180632710,-150.0,0.00012241,2]
[336806894,1725180632719,-583.98343581,0.00012241,2]
[336806901,1725180638450,-207.48656419,0.00012241,2]
[336806902,1725180638460,-209.59,0.00012253,2]
[336806903,1725180638469,-180.69531855,0.000123,4]
[336806904,1725180638480,-919.30468145,0.000123,4]
[336806905,1725180638490,-174.04,0.00012326,2]
[336806906,1725180638499,-791.47,0.00012341,2]
[336806907,1725180638510,-1600.0,0.000124,4]
[336806908,1725180638519,-2578.09472295,0.000125,2]
[336806909,1725180638531,-716.33338091,0.000125,2]
[336806910,1725180638548,-4257.24347097,0.000125,2]
[336806911,1725180638558,-2200.0,0.000125,4]
[336806912,1725180638567,-1372.75652903,0.000126,4]
[336806913,1725180638579,-1327.24347097,0.000126,4]
[336806914,1725180638588,-420.0,0.00012607,2]
[336806915,1725180638598,-280.45362251,0.00012694,2]
[336806916,1725180638607,-15.40905376,0.000127,2]
[336806917,1725180638619,-275.85393769,0.000127,2]
[336806918,1725180638642,-3500.24350855,0.000127,2]
[336806919,1725180638652,-500.0,0.000127,4]
[336806920,1725180638661,-190.41,0.00012764,2]
[336806921,1725180638671,-963.8722,0.0001278,2]
[336806922,1725180638681,-801.464,0.0001278,2]
[336806923,1725180638690,-42921.50134367,0.000128,2]
[336806924,1725180638700,-500.0,0.000128,4]
[336806925,1725180638709,-320.0,0.0001284,2]
[336806926,1725180638719,-1943.2932,0.0001287,2]
[336806927,1725180638728,-500.0,0.00012873,2]
[336806928,1725180638738,-10128.6976,0.0001288,2]
[336806929,1725180638747,-946.3744,0.0001288,2]
[336806930,1725180638757,-81969.7521,0.0001288,2]
[336806932,1725180638767,-1000.0,0.0001288,2]
[336806934,1725180638776,-316.0156951,0.00012899,2]
[336806936,1725180638787,-316.01569506,0.00012899,2]
[336806938,1725180638796,-316.01569506,0.00012899,2]
[336806940,1725180638806,-316.01569506,0.00012899,2]
[336806942,1725180638815,-316.01569506,0.000129,2]
[336806944,1725180638827,-316.01569506,0.000129,2]
[336806946,1725180638836,-13776.6469,0.000129,2]
[336806948,1725180638846,-28525.4511,0.000129,2]
[336806950,1725180638855,-316.01569506,0.000129,2]
[336806952,1725180638865,-483.447133,0.000129,2]
[336806954,1725180638874,-155.85325521,0.000129,2]
[336806956,1725180638884,-7500.0,0.000129,2]
[336806958,1725180638894,-500.0,0.000129,4]
[336806960,1725180638904,-316.01569506,0.000129,2]
[336806962,1725180638915,-1079.62136155,0.000129,2]
[336806963,1725180638925,-150.79,0.0001299,2]
[336806964,1725180638934,-3982.2475701,0.00012993,2]
[336806965,1725180638943,-23273.42610006,0.00012997,2]
[336806966,1725180638953,-500.0,0.00012999,2]
[336806967,1725180638962,-500.0,0.00012999,2]
[336806968,1725180638971,-500.0,0.00012999,2]
[336806969,1725180638982,-500.0,0.00012999,2]
[336806970,1725180638991,-183.23314245,0.00012999,2]
[336806971,1725180639000,-588.31549017,0.00012999,2]
[336806972,1725180639010,-500.0,0.00012999,2]
[336806973,1725180639019,-628.74734369,0.00012999,2]
[336806974,1725180639028,-337.04352426,0.00012999,2]
[336806975,1725180639037,-154.32545439,0.00012999,2]
[336806976,1725180639046,-783.0,0.00013,2]
[336806977,1725180639055,-438094.24488451,0.00013,2]
[336806978,1725180639072,-492.40723222,0.00013,2]
[336806979,1725180639083,-925.30673529,0.00013,2]
[336806980,1725180639095,-456.5884697,0.00013,2]
[336806982,1725180639106,-5406.64754168,0.00013,2]
[336806985,1725180639132,-404.28989155,0.00013,2]
[336806988,1725180639142,-3160.19150616,0.00013,2]
[336806990,1725180639153,-484.5265281,0.00013,2]
[336807006,1725180640366,-3729.54558157,0.00013,2]
[336807007,1725180640531,-3738.49741325,0.00013,2]
[336807008,1725180640640,-1300631.4027497,0.00013,2]
[336807015,1725180643271,-44550.86405831,0.00013,2]
[336807018,1725180643927,-482.60823281,0.00013,2]
[336807019,1725180643951,-2851.60009521,0.00013,2]
[336807020,1725180643963,-1860.29152202,0.00013,2]
[336807022,1725180646526,-77176.3203611,0.00013,2]
[336807024,1725180703962,624.98866598,0.00024,120]
[336807026,1725180767568,160.74,0.00010959,2]
[336807027,1725180893331,521.43,0.00010156,2]
[336807028,1725180911581,157.56,9.227e-05,2]
[336807029,1725181243320,173.63,0.00010959,2]
[336807030,1725181385197,495.35,9.409e-05,2]
[336807031,1725181676843,-160.0,0.00030974,30]
[336807032,1725181676868,-16002.05785463,0.00030974,120]
[336807033,1725181676891,-193.0,0.00030974,30]
[336807034,1725181676916,-1003.28871082,0.00030974,30]
[336807035,1725181676939,-2000.0,0.00030974,30]
[336807036,1725181676963,-2000.0,0.00030974,30]
[336807037,1725181676988,-2000.0,0.00030974,30]
[336807038,1725181677011,-1000.0,0.00030974,30]
[336807039,1725181677037,-2000.0,0.00030974,30]
[336807040,1725181677063,-488.8736,0.00030974,30]
[336807041,1725181677087,-2054.099999,0.00030974,30]
[336807042,1725181677111,-2054.099999,0.00030974,30]
[336807043,1725181677133,-577.54344486,0.00030974,120]
[336807044,1725181677156,-297.7331908,0.00030974,120]
[336807045,1725181677179,-246.6326575,0.00030974,120]
[336807046,1725181677203,-201.64491092,0.00030974,90]
[336807047,1725181677227,-1735.10580705,0.00030974,120]
[336807048,1725181677250,-213.71154315,0.00030974,120]
[336807049,1725181677272,-235.30715992,0.00030974,30]
[336807050,1725181677298,-2000.0,0.00030974,30]
[336807051,1725181677322,-2000.0,0.00030974,30]
[336807052,1725181677347,-2054.099999,0.00030974,30]
[336807053,1725181677372,-150.0,0.00030974,30]
[336807054,1725181677398,-150.1,0.00030974,40]
[336807055,1725181689373,500.0,0.00030974,30]
[336807056,1725181717354,-888.0,0.000248,120]
[336807057,1725181717386,-555.0,0.000249,120]
[336807058,1725181717416,-500.0,0.00024932,120]
[336807059,1725181717451,-1006.60519999,0.00025,60]
[336807060,1725181717480,-1000.0,0.00025,60]
[336807061,1725181717509,-150.0,0.00025,60]
[336807062,1725181717539,-889.1216099,0.00025,120]
[336807063,1725181717569,-1000.0,0.00025,120]
[336807064,1725181724013,-1000.0,0.00026,120]
[336807065,1725181724047,-218.1861137,0.00026,120]
[336807066,1725181724085,-633.8995,0.000264,120]
[336807067,1725181724121,-800.0,0.00026986,120]
[336807068,1725181724154,-800.0,0.00026986,120]
[336807069,1725181724189,-800.0,0.00026986,120]
[336807070,1725181724222,-800.0,0.00026986,120]
[336807071,1725181724254,-800.0,0.00026986,120]
[336807072,1725181724287,-752.75,0.00026986,120]
[336807073,1725181724323,-535.59972984,0.00027,120]
[336807074,1725181727200,174.29,0.00010959,2]
[336807077,1725181831493,-550.0,0.00011,2]
[336807078,1725181831503,-34.59550704,0.00011109,2]
[336807079,1725181831515,-141.10271675,0.00011109,2]
[336807080,1725181831524,-174.30177621,0.00011209,2]
[336807083,1725181837451,-714.14822379,0.00011209,2]
[336807084,1725181837461,-200.0,0.00011214,2]
[336807085,1725181837470,-269.93,0.00011215,2]
[336807086,1725181837480,-161.30927399,0.00011258,2]
[336807088,1725181837509,-6.36072601,0.00011258,2]
[336807089,1725181837518,-2070.72399598,0.00011259,2]
[336807090,1725181837530,-21809.27600402,0.00011259,2]
[336807091,1725181837607,-250.0,0.0001127,2]
[336807092,1725181837618,-250.0,0.00011283,2]
[336807093,1725181837628,-250.0,0.00011284,2]
[336807094,1725181837637,-189.75,0.00011326,2]
[336807095,1725181837647,-499.99,0.00011326,2]
[336807096,1725181837657,-192.0,0.00011329,2]
[336807097,1725181837667,-777.44,0.00011341,2]
[336807098,1725181837677,-5348.55,0.00011341,2]
[336807099,1725181837688,-174.04,0.00011345,2]
[336807100,1725181837697,-726.22,0.0001136,2]
[336807101,1725181837706,-494.32,0.00011383,2]
[336807102,1725181837715,-495.35,0.00011673,2]
[336807103,1725181837724,-642.66,0.00011748,2]
[336807104,1725181837733,-642.66,0.00011751,2]
[336807105,1725181837743,-642.66,0.00011754,2]
[336807106,1725181837752,-642.66,0.00011757,2]
[336807107,1725181837762,-642.66,0.0001176,2]
[336807108,1725181837771,-642.66,0.00011764,2]
[336807109,1725181837780,-642.66,0.00011767,2]
[336807110,1725181837790,-642.66,0.0001177,2]
[336807111,1725181837800,-642.66,0.00011773,2]
[336807112,1725181837810,-150.0,0.00011773,2]
[336807113,1725181837819,-642.66,0.00011776,2]
[336807114,1725181837828,-196.8,0.00011778,2]
[336807115,1725181837837,-642.66,0.00011779,2]
[336807116,1725181837846,-642.66,0.00011782,2]
[336807117,1725181837856,-642.66,0.00011785,2]
[336807118,1725181837865,-642.66,0.00011788,2]
[336807119,1725181837874,-642.66,0.00011791,2]
[336807120,1725181837884,-642.66,0.00011795,2]
[336807121,1725181837893,-642.66,0.00011798,2]
[336807122,1725181837903,-791.47,0.000118,2]
[336807123,1725181837912,-642.66,0.00011801,2]
[336807124,1725181837922,-642.66,0.00011804,2]
[336807125,1725181837931,-642.66,0.00011807,2]
[336807126,1725181837941,-421.85,0.00011841,2]
[336807127,1725181837951,-791.47,0.00011941,2]
[336807128,1725181837960,-421.85,0.00011941,2]
[336807129,1725181837969,-791.47,0.00012041,2]
[336807130,1725181837978,-490.35,0.00012041,2]
[336807131,1725181837987,-310.62202195,0.0001208,7]
[336807132,1725181837996,-808.0,0.00012108,2]
[336807134,1725181838005,-791.47,0.00012141,2]
[336807136,1725181838014,-2000.0,0.000122,4]
[336807138,1725181838024,-500.0,0.000123,2]
[336807140,1725181838036,-4100.0,0.000123,4]
[336807142,1725181838046,-6200.0,0.000124,4]
[336807144,1725181838055,-791.47,0.00012441,2]
[336807146,1725181838064,-8200.0,0.000125,4]
[336807148,1725181838073,-172.48,0.00012503,2]
[336807150,1725181838082,-421.85,0.000126,2]
[336807152,1725181838091,-1626.01,0.000126,2]
[336807154,1725181838101,-10300.0,0.000126,4]
[336807155,1725181838111,-167.67,0.00012666,2]
[336807157,1725181838120,-224.59,0.00012685,2]
[336807159,1725181838129,-428.14,0.00012685,2]
[336807161,1725181838139,-153.52,0.00012685,2]
[336807163,1725181838148,-357.2,0.00012685,2]
[336807165,1725181838157,-240.21,0.00012685,2]
[336807167,1725181838167,-300.72,0.00012685,2]
[336807169,1725181838176,-150.0,0.00012685,2]
[336807171,1725181838185,-357.2,0.00012685,2]
[336807173,1725181838194,-150.0,0.00012685,2]
[336807175,1725181838203,-427.21,0.00012685,2]
[336807177,1725181838212,-150.0,0.00012685,2]
[336807179,1725181838221,-357.2,0.00012685,2]
[336807181,1725181838231,-427.21,0.00012685,2]
[336807183,1725181838240,-150.0,0.00012685,2]
[336807185,1725181838251,-150.0,0.00012685,2]
[336807187,1725181838260,-427.21,0.00012685,2]
[336807189,1725181838269,-150.0,0.00012685,2]
[336807191,1725181838279,-357.2,0.00012685,2]
[336807193,1725181838289,-357.2,0.00012685,2]
[336807195,1725181838298,-150.0,0.00012685,2]
[336807197,1725181838307,-150.0,0.00012685,2]
[336807199,1725181838317,-150.0,0.00012685,2]
[336807201,1725181838326,-427.21,0.00012685,2]
[336807203,1725181838336,-357.2,0.00012685,2]
[336807205,1725181838349,-150.0,0.00012685,2]
[336807207,1725181838358,-427.21,0.00012685,2]
[336807209,1725181838368,-427.21,0.00012685,2]
[336807211,1725181838377,-150.0,0.00012685,2]
[336807213,1725181838387,-150.0,0.00012685,2]
[336807215,1725181838396,-427.21,0.00012685,2]
[336807217,1725181838406,-2000.0,0.000127,4]
[336807219,1725181838417,-192.0,0.00012745,2]
[336807221,1725181838428,-1963.6775,0.0001278,2]
[336807223,1725181838437,-40350.2668,0.0001278,2]
[336807225,1725181838446,-2000.0,0.000128,4]
[336807227,1725181838455,-255.0,0.00012844,2]
[336807229,1725181838464,-500.0,0.00012873,2]
[336807231,1725181838474,-350.58,0.00012877,2]
[336807233,1725181838483,-427.06,0.00012877,2]
[336807235,1725181838494,-8116.0801,0.00012893,2]
[336807237,1725181838505,-2066.75377872,0.00012896,2]
[336807239,1725181838515,-2066.75377871,0.00012896,2]
[336807241,1725181838524,-2066.75377871,0.00012897,2]
[336807243,1725181838534,-2066.75377871,0.00012897,2]
[336807245,1725181838543,-2066.75377871,0.00012898,2]
[336807247,1725181838552,-2066.75377871,0.00012898,2]
[336807249,1725181838562,-2066.75377871,0.00012899,2]
[336807251,1725181838572,-2066.75377871,0.00012899,2]
[336807253,1725181838583,-2066.75377871,0.000129,2]
[336807255,1725181838592,-388.79,0.000129,2]
[336807257,1725181838603,-1560.2075,0.000129,2]
[336807259,1725181838612,-2066.75377871,0.000129,2]
[336807261,1725181838622,-537.84178319,0.000129,2]
[336807263,1725181838634,-395.89000101,0.000129,2]
[336807265,1725181838645,-324.33833276,0.000129,2]
[336807269,1725181838665,-1731.69774806,0.000129,2]
[336807271,1725181838680,-3011.86785147,0.000129,2]
[336807273,1725181838690,-986.37405338,0.000129,4]
[336807275,1725181838702,-529.12011047,0.000129,4]
[336807277,1725181838714,-324.58299937,0.000129,4]
[336807280,1725181838726,-159.92283678,0.000129,4]
[336807282,1725181838735,-130.44712677,0.0001297,2]
[336807284,1725181838751,-571.29656925,0.0001297,2]
[336807286,1725181838761,-213.95126716,0.00012997,2]
[336807288,1725181838770,-500.0,0.00012999,2]
[336807290,1725181838780,-300.0,0.00012999,2]
[336807293,1725181838797,-500.0,0.00012999,2]
[336807295,1725181838806,-500.0,0.00012999,2]
[336807297,1725181838816,-500.0,0.00012999,2]
[336807298,1725181838825,-500.0,0.00012999,2]
[336807300,1725181838835,-500.0,0.00012999,2]
[336807302,1725181838845,-194.85409029,0.00012999,2]
[336807304,1725181838854,-500.0,0.00012999,2]
[336807306,1725181838864,-500.0,0.00012999,2]
[336807308,1725181838873,-500.0,0.00012999,2]
[336807310,1725181838884,-500.0,0.00012999,2]
[336807312,1725181838894,-410.53934336,0.00012999,2]
[336807314,1725181838903,-714.0,0.00013,2]
[336807316,1725181838913,-6698.84097657,0.00013,2]
[336807320,1725181838936,-485.28526725,0.00013,2]
[336807322,1725181838947,-335.76750053,0.00013,2]
[336807324,1725181838959,-362.78211077,0.00013,2]
[336807326,1725181838970,-987.54270914,0.00013,2]
[336809864,1725181965423,2041.699999,0.00030974,30]
[336809865,1725181965797,2000.0,0.00030974,30]
[336809866,1725181966135,2000.0,0.00030974,30]
[336809867,1725181966617,2054.099999,0.00030974,30]
[336809868,1725181989291,157.56,9.973e-05,2]
[336809869,1725182255544,155.35,0.00010959,2]
[336809870,1725182377909,481.97,9.868e-05,2]
[336809871,1725182525083,800.0,0.00026986,120]
[336809872,1725182546358,160.0,0.00030973,30]
[336809873,1725182564927,2000.0,0.00030973,30]
[336809874,1725182565470,2000.0,0.00030973,30]
[336809875,1725182735942,156.86,0.00010959,2]
[336809876,1725182785082,599.8,0.00024,120]
[336809877,1725182803541,1000.0,0.00025,120]
[336809878,1725182820662,314.4,0.00025,120]
[336810013,1725182883246,255.0,0.00025,60]
[336810014,1725182883904,300.0,0.00025,120]
[336810015,1725182886881,312.0620894,0.00025,60]
[336810016,1725182892899,457.87,9.719e-05,2]
[336810022,1725182914962,211.29074255,0.0001,2]
[336810023,1725182915307,576.6770232,0.00027,120]
[336810024,1725182917740,152.09700346,0.00030974,120]
[336810036,1725183031580,-505.43097376,0.00011484,2]
[336810037,1725183031753,-210.98190173,0.00011484,2]
[336810038,1725183031766,-316.26706417,0.00011526,2]
[336810039,1725183031778,-316.26706415,0.00011541,2]
[336810040,1725183031793,-200.21,0.00011579,2]
[336810041,1725183031803,-681.24,0.00011584,2]
[336810042,1725183031813,-884.8,0.00011597,2]
[336810043,1725183032295,-8309.8510806,0.00011626,2]
[336810044,1725183032360,-1223.20287549,0.00011626,2]
[336810045,1725183032376,-4461.31604391,0.00011626,2]
[336810046,1725183032385,-250.0,0.00011641,2]
[336810047,1725183032395,-196.82,0.00011657,2]
[336810048,1725183032404,-10.74623231,0.00011682,2]
[336810049,1725183037603,-181.25376769,0.00011682,2]
[336810050,1725183037612,-250.0,0.00011734,2]
[336810051,1725183037622,-444.22,0.00011744,2]
[336810052,1725183037631,-67.35281614,0.0001175,2]
[336810053,1725183037663,-153.31718386,0.0001175,2]
[336810054,1725183037674,-150.99,0.0001175,2]
[336810055,1725183037684,-500.0,0.00011843,2]
[336810056,1725183037693,-499.99,0.00011843,2]
[336810057,1725183037704,-457.87,0.00011983,2]
[336810058,1725183037713,-700.0,0.000122,4]
[336810059,1725183037723,-300.0,0.000122,4]
[336810060,1725183037732,-500.0,0.000123,2]
[336810061,1725183037741,-1500.0,0.000123,4]
[336810062,1725183037751,-600.0,0.000123,4]
[336810063,1725183037760,-2300.0,0.000124,4]
[336810064,1725183037770,-1000.0,0.000124,4]
[336810065,1725183037780,-999.99,0.000124,2]
[336810066,1725183037792,-421.85,0.000125,2]
[336810067,1725183037802,-1407.49218914,0.000125,4]
[336810068,1725183037823,-1018.81330539,0.000125,4]
[336810069,1725183037835,-673.69450547,0.000125,4]
[336810070,1725183037845,-325.24066354,0.000125,4]
[336810153,1725183039663,-453.16590618,0.000125,4]
[336810154,1725183039675,-521.59343028,0.000125,4]
[336810155,1725183039685,-82.86656972,0.00012599,2]
[336810156,1725183039723,-67.13343028,0.00012599,2]
[336810157,1725183039733,-3900.0,0.000126,4]
[336810158,1725183039743,-1700.0,0.000126,4]
[336810159,1725183039754,-12484.38772821,0.0001268,2]
[336810160,1725183039764,-150.7,0.00012685,2]
[336810161,1725183039774,-150.0,0.00012685,2]
[336810162,1725183039787,-533.47,0.00012685,2]
[336810163,1725183039797,-700.0,0.000127,4]
[336810164,1725183039809,-300.0,0.000127,4]
[336810165,1725183039818,-700.0,0.000128,4]
[336810166,1725183039827,-300.0,0.000128,4]